{"text_format":"2","workbook":"xlsx","n_sheets":1,"sheets":["Plan1"],"not_rendered":{"charts":0,"images":0,"macros":0,"external_links":0,"defined_names":0,"comments":0,"pivot_tables":0},"unopened":[],"bounds":{"document_bytes":16777216,"sheet_cells":100000,"run_cost":"one","rows_first":2000,"rows_last":500,"rows_between":2000,"halvings":0,"cell_chars":16384,"cell_head_chars":4096},"cells_cut":0,"cells_raw":0,"read":"whole","date_system":"1900"}

{"sheet":"Plan1","index":0,"n_rows":10,"n_cols":17,"rows_kept":10,"cut":false,"hidden":false,"merged":[[3,11,4,11],[3,1,3,7],[3,0,4,0],[3,8,4,8],[3,9,4,9],[3,10,4,10],[3,12,4,12],[3,13,4,13],[3,14,4,14],[3,15,4,15],[3,16,4,16]]}
[]
["ANEXO III -   QUANTITATIVO ESTIMADO PARA OS SERVIÇOS"]
["A estimativa de execução dos serviços é dada pela tabela a seguir, que mostra o quantitativo de transações previstas para 12 meses de contrato:"]
["Tipo de Serviço","Brasília",{"$nulls":6},"1ª SR-MG","2ª SR-BA","3ª SR-PE","4ª SR-SE","5ª SR-AL","6ª SR-BA","7ª SR-PI","8ªSR-MA","TOTAL"]
[null,"PR","AA","AD","AE","AI","AR"]
["Emissão de bilhetes aéreos nacionais",375,35,180,10,130,150,null,40,35,53,24,22,20,20,10,{"$f":"SUM(B6:P6)","v":1104}]
["Emissão de bilhetes aéreos internacionais",10,{"$nulls":14},{"$f":"SUM(B7:P7)","v":10}]
["Solicitação de reembolso de bilhetes aéreos",40,2,15,0,11,11,null,5,5,5,1,1,1,1,0,{"$f":"SUM(B8:P8)","v":98}]
["Emissão de apólice de seguro-saúde",10,{"$nulls":14},{"$f":"SUM(B9:P9)","v":10}]
["Total",{"$f":"SUM(B6:B9)","v":435},37,195,10,141,161,0,45,40,58,25,23,21,21,10,1222]